fUST/lending_fUST_20250423
["ID","MTS","AMOUNT","RATE_DAILY","PERIOD"]
[358669974,1745356252959,-520.79,0.00024109,2]
[358669975,1745356252970,-520.79,0.00024109,2]
[358669976,1745356252980,-520.79,0.00024109,2]
[358669977,1745356252989,-520.79,0.00024109,2]
[358669978,1745356252999,-520.79,0.00024109,2]
[358669979,1745356253008,-520.79,0.00024109,2]
[358669980,1745356253018,-520.79,0.00024109,2]
[358669981,1745356253028,-520.79,0.00024109,2]
[358669982,1745356253038,-151.0,0.00024109,7]
[358669983,1745356253047,-1738.81,0.00024109,2]
[358669984,1745356253057,-3000.0,0.0002411,2]
[358669985,1745356253066,-3000.0,0.0002412,2]
[358669986,1745356253075,-151.0,0.0002412,7]
[358669987,1745356253085,-3000.0,0.0002413,2]
[358669988,1745356253094,-3000.0,0.0002414,2]
[358669989,1745356253104,-3000.0,0.0002415,2]
[358669990,1745356253113,-3000.0,0.0002416,2]
[358669991,1745356253123,-3735.977032,0.0002417,2]
[358669992,1745356253132,-474.15679577,0.0002438,2]
[358669993,1745356253142,-151.0,0.0002438,7]
[358669994,1745356253151,-208.740892,0.0002438,7]
[358669995,1745356253161,-151.0,0.0002438,7]
[358669996,1745356253170,-500.0,0.00024383,2]
[358669997,1745356253179,-500.0,0.00024383,2]
[358669998,1745356253189,-500.0,0.00024383,2]
[358669999,1745356253199,-500.0,0.00024383,2]
[358670000,1745356253209,-500.0,0.00024383,2]
[358670001,1745356253218,-500.0,0.00024383,2]
[358670002,1745356253228,-500.0,0.00024383,2]
[358670003,1745356253237,-500.0,0.00024383,2]
[358670004,1745356253247,-500.0,0.00024383,2]
[358670005,1745356253258,-500.0,0.00024383,2]
[358670006,1745356253267,-500.0,0.00024383,2]
[358670007,1745356253277,-500.0,0.00024383,2]
[358670008,1745356253289,-409.00868671,0.00024383,2]
[358670009,1745356253300,-500.0,0.00024383,2]
[358670010,1745356253310,-235.785191,0.00024383,7]
[358670011,1745356253321,-235.785191,0.00024383,7]
[358670012,1745356253331,-639.67,0.00024383,2]
[358670013,1745356253342,-500.0,0.00024383,2]
[358670014,1745356253352,-151.0,0.00024383,7]
[358670015,1745356253362,-3748.32,0.00024383,2]
[358670016,1745356253372,-500.0,0.00024383,2]
[358670017,1745356253383,-744.97,0.00024383,2]
[358670018,1745356253393,-2434.87,0.00024383,2]
[358670019,1745356253403,-566.36,0.00024383,2]
[358670020,1745356253414,-500.0,0.00024383,2]
[358670021,1745356253423,-500.0,0.00024383,2]
[358670022,1745356253433,-1295.14,0.00024383,2]
[358670023,1745356253443,-500.0,0.00024383,2]
[358670024,1745356253453,-831.65,0.00024383,2]
[358670025,1745356253463,-520.79,0.00024383,2]
[358670026,1745356253472,-1719.08781251,0.00024383,2]
[358670027,1745356253485,-19.72218749,0.00024383,2]
[358670028,1745356253494,-500.0,0.00024657,2]
[358670029,1745356253504,-500.0,0.00024657,2]
[358670030,1745356253513,-500.0,0.00024657,2]
[358670031,1745356253524,-500.0,0.00024657,2]
[358670032,1745356253533,-639.67,0.00024657,2]
[358670033,1745356253543,-500.0,0.00024657,2]
[358670034,1745356253554,-3748.32,0.00024657,2]
[358670035,1745356253564,-500.0,0.00024657,2]
[358670036,1745356253575,-744.97,0.00024657,2]
[358670037,1745356253585,-2434.87,0.00024657,2]
[358670038,1745356253594,-211.65137574,0.00024657,2]
[358670039,1745356253620,-354.70862426,0.00024657,2]
[358670040,1745356253630,-500.0,0.00024657,2]
[358670041,1745356253640,-163.23848343,0.00024657,2]
[358670042,1745356253650,-1295.14,0.00024657,2]
[358670043,1745356253661,-573.6594765,0.00024657,2]
[358670044,1745356253670,-831.65,0.00024657,2]
[358670045,1745356253680,-520.79,0.00024657,2]
[358670046,1745356253689,-1738.81,0.00024657,2]
[358670047,1745356253699,-977.9923352,0.00024658,4]
[358670048,1745356253709,-200.0,0.00024658,15]
[358670049,1745356253719,-380.0,0.00024658,2]
[358670050,1745356253728,-193.34725938,0.00024658,2]
[358670051,1745356253738,-587.0,0.00024846,2]
[358670052,1745356253748,-587.0,0.00024846,2]
[358670053,1745356253759,-500.0,0.00024873,2]
[358670054,1745356253770,-500.0,0.00024873,2]
[358670055,1745356253781,-500.0,0.00024873,2]
[358670056,1745356253795,-500.0,0.00024873,2]
[358670057,1745356253805,-500.0,0.00024873,2]
[358670058,1745356253815,-151.0,0.00024873,7]
[358670059,1745356253826,-151.0,0.00024873,7]
[358670060,1745356253835,-151.0,0.00024873,7]
[358670061,1745356253845,-172.663445,0.00024873,7]
[358670062,1745356253855,-172.663445,0.00024873,7]
[358670063,1745356253868,-151.0,0.00024899,7]
[358670064,1745356253878,-151.0,0.00024899,7]
[358670065,1745356253889,-1106.601686,0.00024899,7]
[358670066,1745356253898,-1106.601686,0.00024899,7]
[358670067,1745356253908,-151.0,0.00024899,7]
[358670068,1745356253918,-472.175742,0.00024899,7]
[358670069,1745356253928,-472.175742,0.00024899,7]
[358670070,1745356253938,-151.0,0.00024899,7]
[358670071,1745356253948,-918.839639,0.00024899,2]
[358670072,1745356253958,-918.839639,0.00024899,2]
[358670073,1745356253968,-151.0,0.00024899,7]
[358670074,1745356253978,-151.0,0.00024899,7]
[358670075,1745356253988,-160.0,0.00024899,2]
[358670076,1745356253999,-1111.779885,0.00024899,7]
[358670077,1745356254010,-482.397764,0.00024899,7]
[358670078,1745356254019,-482.397764,0.00024899,7]
[358670079,1745356254029,-160.0,0.00024899,3]
[358670080,1745356254038,-160.0,0.00024899,3]
[358670081,1745356254048,-420.73667954,0.00024899,3]
[358670082,1745356254058,-160.0,0.000249,3]
[358670083,1745356254068,-12570.97479393,0.000249,3]
[358670084,1745356254077,-151.0,0.000249,7]
[358670085,1745356254087,-151.0,0.000249,7]
[358670086,1745356254097,-151.0,0.000249,7]
[358670087,1745356254107,-151.0,0.000249,7]
[358670088,1745356254118,-1106.601686,0.000249,7]
[358670089,1745356254128,-1106.601686,0.000249,7]
[358670090,1745356254139,-151.0,0.000249,7]
[358670091,1745356254149,-472.175742,0.000249,7]
[358670092,1745356254159,-472.175742,0.000249,7]
[358670093,1745356254168,-151.0,0.000249,7]
[358670094,1745356254177,-918.839639,0.000249,2]
[358670095,1745356254199,-918.839639,0.000249,2]
[358670096,1745356254211,-151.0,0.000249,7]
[358670097,1745356254222,-151.0,0.000249,7]
[358670098,1745356254232,-235.785191,0.000249,7]
[358670099,1745356254243,-235.785191,0.000249,7]
[358670100,1745356254254,-160.0,0.000249,7]
[358670101,1745356254264,-1111.779885,0.000249,7]
[358670102,1745356254274,-482.397764,0.000249,7]
[358670103,1745356254285,-160.0,0.000249,7]
[358670104,1745356254295,-482.397764,0.000249,7]
[358670105,1745356254306,-729.16666667,0.000249,7]
[358670106,1745356254316,-151.0,0.000249,7]
[358670107,1745356254327,-151.0,0.000249,7]
[358670108,1745356254337,-13026.71483177,0.000249,2]
[358670109,1745356254351,-1153.32357775,0.000249,2]
[358670110,1745356254364,-262.248948,0.000249,2]
[358670111,1745356254463,-7134.66245798,0.00020999,2]
[358670112,1745356254476,-3176.52274623,0.00020999,2]
[358670123,1745357127992,1015.54063285,0.00019,10]
[358670128,1745357278642,6717.66853746,0.00016,2]
[358670129,1745357290730,3971.0399282,0.00019945,2]
[358670131,1745357300574,6646.29733758,0.000125,2]
[358670132,1745357309767,607.190677,0.00019945,2]
[358670133,1745357323716,357.94009648,0.0002,2]
[358670134,1745357329976,1179.651899,0.0002,2]
[358670141,1745357380014,329.57381725,0.000189,2]
[358670214,1745357432992,-1307.44933,0.00020159,2]
[358670215,1745357433008,-160.0,0.0002016,2]
[358670216,1745357433022,-1000.0,0.00020163,2]
[358670217,1745357433036,-753.09705082,0.00020163,2]
[358670218,1745357433047,-250.0,0.00020263,2]
[358670219,1745357433061,-199.68954371,0.00020263,2]
[358670220,1745357433075,-3000.0,0.000203,2]
[358670221,1745357433090,-428.705296,0.00020762,2]
[358670222,1745357433103,-300.0,0.00020971,2]
[358670223,1745357433116,-300.0,0.00020971,2]
[358670224,1745357433129,-395.96,0.00020972,3]
[358670225,1745357433142,-197.98,0.00020972,3]
[358670226,1745357433159,-593.94,0.00020972,3]
[358670227,1745357433171,-500.0,0.00020973,2]
[358670228,1745357433184,-500.0,0.00020973,2]
[358670229,1745357433198,-500.0,0.00020973,2]
[358670230,1745357433211,-500.0,0.00020973,2]
[358670231,1745357433224,-500.0,0.00020973,2]
[358670232,1745357433236,-500.0,0.00020973,2]
[358670233,1745357433251,-500.0,0.00020973,2]
[358670234,1745357433263,-500.0,0.00020973,2]
[358670235,1745357433276,-500.0,0.00020973,2]
[358670236,1745357433287,-500.0,0.00020973,2]
[358670237,1745357433300,-500.0,0.00020973,2]
[358670238,1745357433312,-500.0,0.00020973,2]
[358670239,1745357433324,-500.0,0.00020973,2]
[358670240,1745357433336,-500.0,0.00020973,2]
[358670241,1745357433349,-230.51015802,0.00020973,2]
[358670242,1745357433361,-502.50941165,0.00020973,2]
[358670243,1745357433374,-500.0,0.00020973,2]
[358670244,1745357433387,-300.0,0.00020973,2]
[358670245,1745357433400,-500.0,0.00020973,2]
[358670246,1745357433413,-500.0,0.00020973,2]
[358670247,1745357433426,-500.0,0.00020973,2]
[358670248,1745357433438,-505.99386805,0.00020973,2]
[358670249,1745357433452,-500.0,0.00020973,2]
[358670250,1745357433465,-500.0,0.00020973,2]
[358670251,1745357433477,-500.0,0.00020973,2]
[358670252,1745357433489,-282.61240024,0.00020973,2]
[358670253,1745357433506,-502.60416933,0.00020973,2]
[358670254,1745357433518,-500.0,0.00020973,2]
[358670255,1745357433531,-500.0,0.00020973,2]
[358670256,1745357433544,-1781.27827387,0.00020984,5]
[358670257,1745357433557,-6999.99849476,0.0002099,2]
[358670258,1745357433573,-5176.01,0.0002099,2]
[358670259,1745357433588,-87823.99150524,0.0002099,2]
[358670260,1745357433601,-525.67815912,0.00020998,2]
[358670261,1745357433615,-442.26638321,0.00020998,2]
[358670262,1745357433627,-617.509358,0.00020998,2]
[358670263,1745357433639,-14426.02440819,0.00020999,2]
[358670264,1745357433652,-151.0,0.00021439,2]
[358670265,1745357433664,-44893.96056264,0.00021452,2]
[358670266,1745357433679,-1522.71150373,0.00021452,2]
[358670267,1745357437092,-471.25325001,0.00020981,2]
[358670268,1745357437103,-378.95038375,0.00020981,2]
[358670269,1745357437114,-500.0,0.00020981,2]
[358670270,1745357437126,-262.79636624,0.00020981,2]
[358670312,1745357438698,-237.20363376,0.00020981,2]
[358670314,1745357438708,-500.0,0.00020981,2]
[358670316,1745357438718,-500.0,0.00020981,2]
[358670317,1745357438728,-500.0,0.00020981,2]
[358670318,1745357438739,-500.0,0.00020981,2]
[358670319,1745357438751,-500.0,0.00020981,2]
[358670320,1745357438761,-500.0,0.00020981,2]
[358670321,1745357438770,-500.0,0.00020981,2]
[358670322,1745357438780,-500.0,0.00020981,2]
[358670323,1745357438790,-500.0,0.00020981,2]
[358670324,1745357438801,-500.0,0.00020981,2]
[358670325,1745357438810,-500.0,0.00020981,2]
[358670326,1745357438820,-500.0,0.00020981,2]
[358670327,1745357438831,-500.0,0.00020981,2]
[358670328,1745357438841,-500.0,0.00020981,2]
[358670330,1745357438851,-500.0,0.00020981,2]
[358670331,1745357438861,-500.0,0.00020981,2]
[358670333,1745357438871,-500.0,0.00020981,2]
[358670335,1745357438881,-500.0,0.00020981,2]
[358670337,1745357438892,-500.0,0.00020981,2]
[358670338,1745357438902,-500.0,0.00020981,2]
[358670339,1745357438912,-500.0,0.00020981,2]
[358670340,1745357438921,-500.0,0.00020981,2]
[358670341,1745357438931,-500.0,0.00020981,2]
[358670342,1745357438941,-500.0,0.00020981,2]
[358670343,1745357438951,-500.0,0.00020981,2]
[358670344,1745357438960,-500.0,0.00020981,2]
[358670345,1745357438970,-500.0,0.00020981,2]
[358670346,1745357438980,-500.0,0.00020981,2]
[358670347,1745357438990,-500.0,0.00020981,2]
[358670348,1745357439003,-500.0,0.00020981,2]
[358670349,1745357439014,-500.0,0.00020981,2]
[358670350,1745357439024,-500.0,0.00020981,2]
[358670351,1745357439034,-500.0,0.00020981,2]
[358670352,1745357439044,-500.0,0.00020981,2]
[358670353,1745357439054,-500.0,0.00020981,2]
[358670354,1745357439064,-242567.33893024,0.00021452,2]
[358670355,1745357439079,-4785.51830649,0.00021452,2]
[358670356,1745357439092,-464.08112466,0.00021452,2]
[358670357,1745357439103,-688.12949885,0.00021452,2]
[358670422,1745357442712,-1106.22554832,0.00021452,2]
[358670424,1745357442753,-73972.03452507,0.00021452,2]
[358670425,1745357442763,-283.67924391,0.00021473,2]
[358670426,1745357442773,-500.0,0.00021473,2]
[358670427,1745357442783,-220.12324801,0.00021473,2]
[358670428,1745357442793,-500.0,0.00021473,2]
[358670429,1745357442802,-500.0,0.00021473,2]
[358670430,1745357442812,-500.0,0.00021473,2]
[358670431,1745357442822,-500.0,0.00021473,2]
[358670432,1745357442832,-502.57657747,0.00021473,2]
[358670433,1745357442842,-500.0,0.00021473,2]
[358670434,1745357442852,-500.0,0.00021473,2]
[358670435,1745357442862,-528.72147747,0.00021473,2]
[358670436,1745357442872,-500.0,0.00021473,2]
[358670437,1745357442883,-500.0,0.00021473,2]
[358670438,1745357442892,-541.81345799,0.00021473,2]
[358670439,1745357442902,-500.0,0.00021473,2]
[358670440,1745357442912,-500.0,0.00021473,2]
[358670441,1745357442923,-500.73044143,0.00021473,2]
[358670442,1745357442932,-500.0,0.00021473,2]
[358670444,1745357442943,-15220.10168226,0.00021473,2]
[358670446,1745357442953,-156.587,0.00021494,2]
[358670447,1745357442963,-162.380719,0.00021549,2]
[358670448,1745357442973,-168.3888056,0.00021604,2]
[358670449,1745357442983,-174.61919141,0.00021659,2]
[358670450,1745357442993,-181.08010149,0.00021714,2]
[358670451,1745357443005,-187.78006525,0.00021769,2]
[358670452,1745357443015,-194.72792766,0.00021824,2]
[358670453,1745357443026,-201.93286099,0.00021879,2]
[358670454,1745357443036,-500.0,0.00021917,2]
[358670456,1745357443046,-500.0,0.00021917,2]
[358670458,1745357443056,-500.0,0.00021917,2]
[358670459,1745357443066,-500.0,0.00021917,2]
[358670460,1745357443076,-504.27884058,0.00021917,2]
[358670461,1745357443086,-500.0,0.00021917,2]
[358670462,1745357443096,-500.0,0.00021917,2]
[358670463,1745357443106,-500.0,0.00021917,2]
[358670464,1745357443116,-500.0,0.00021917,2]
[358670465,1745357443126,-500.0,0.00021917,2]
[358670466,1745357443136,-500.0,0.00021917,2]
[358670467,1745357443147,-500.0,0.00021917,2]
[358670468,1745357443157,-500.0,0.00021917,2]
[358670469,1745357443167,-500.0,0.00021917,2]
[358670470,1745357443180,-500.0,0.00021917,2]
[358670471,1745357443191,-500.0,0.00021917,2]
[358670472,1745357443201,-500.0,0.00021917,2]
[358670473,1745357443211,-500.0,0.00021917,2]
[358670474,1745357443220,-500.0,0.00021917,2]
[358670475,1745357443230,-500.0,0.00021917,2]
[358670476,1745357443241,-500.0,0.00021917,2]
[358670477,1745357443254,-500.0,0.00021917,2]
[358670478,1745357443265,-500.0,0.00021917,2]
[358670479,1745357443275,-500.0,0.00021917,2]
[358670480,1745357443285,-500.0,0.00021917,2]
[358670481,1745357443295,-500.0,0.00021917,2]
[358670482,1745357443306,-500.0,0.00021917,2]
[358670483,1745357443316,-500.0,0.00021917,2]
[358670485,1745357443326,-500.0,0.00021917,2]
[358670487,1745357443336,-167.01157647,0.00021917,2]
[358670488,1745357443345,-500.0,0.00021917,2]
[358670489,1745357443356,-500.0,0.00021917,2]
[358670490,1745357443365,-500.0,0.00021917,2]
[358670491,1745357443375,-500.0,0.00021917,2]
[358670493,1745357443386,-500.0,0.00021917,2]
[358670494,1745357443397,-500.0,0.00021917,2]
[358670495,1745357443407,-500.0,0.00021917,2]
[358670496,1745357443417,-500.0,0.00021917,2]
[358670497,1745357443427,-500.0,0.00021917,2]
[358670498,1745357443437,-500.0,0.00021917,2]
[358670499,1745357443447,-500.0,0.00021917,2]
[358670500,1745357443458,-577.60886687,0.00021917,2]
[358670501,1745357443468,-500.0,0.00021917,2]
[358670502,1745357443478,-500.0,0.00021917,2]
[358670503,1745357443489,-500.0,0.00021917,2]
[358670504,1745357443499,-500.0,0.00021917,2]
[358670505,1745357443511,-500.0,0.00021917,2]
[358670506,1745357443521,-500.0,0.00021917,2]
[358670507,1745357443531,-500.0,0.00021917,2]
[358670508,1745357443541,-500.0,0.00021917,2]
[358670509,1745357443551,-500.0,0.00021917,2]
[358670510,1745357443562,-500.0,0.00021917,2]
[358670511,1745357443572,-500.0,0.00021917,2]
[358670512,1745357443582,-567.97316963,0.00021917,2]
[358670513,1745357443592,-500.0,0.00021917,2]
[358670514,1745357443604,-500.0,0.00021917,2]
[358670515,1745357443615,-521.42136203,0.00021917,2]
[358670516,1745357443625,-500.0,0.00021917,2]
[358670517,1745357443635,-500.0,0.00021917,2]
[358670518,1745357443645,-500.0,0.00021917,2]
[358670519,1745357443655,-500.0,0.00021917,2]
[358670520,1745357443665,-500.0,0.00021917,2]
[358670521,1745357443676,-500.0,0.00021917,2]
[358670522,1745357443687,-500.0,0.00021917,2]
[358670523,1745357443697,-500.0,0.00021917,2]
[358670524,1745357443707,-500.0,0.00021917,2]
[358670525,1745357443717,-500.0,0.00021917,2]
[358670526,1745357443727,-500.0,0.00021917,2]
[358670527,1745357443737,-500.0,0.00021917,2]
[358670528,1745357443747,-503.89255439,0.00021917,2]
[358670529,1745357443758,-500.0,0.00021917,2]
[358670530,1745357443768,-178.73601417,0.00021917,2]
[358670531,1745357443778,-500.0,0.00021917,2]
[358670532,1745357443789,-500.0,0.00021917,2]
[358670533,1745357443799,-504.19725742,0.00021917,2]
[358670534,1745357443809,-500.0,0.00021917,2]
[358670535,1745357443819,-596.8,0.00021917,2]
[358670536,1745357443829,-501.58702789,0.00021917,2]
[358670537,1745357443840,-500.0,0.00021917,2]
[358670538,1745357443851,-500.0,0.00021917,2]
[358670539,1745357443862,-500.0,0.00021917,2]
[358670540,1745357443873,-500.0,0.00021917,2]
[358670541,1745357443882,-500.0,0.00021917,2]
[358670542,1745357443892,-500.0,0.00021917,2]
[358670543,1745357443903,-500.0,0.00021917,2]
[358670544,1745357443913,-500.0,0.00021917,2]
[358670545,1745357443923,-500.0,0.00021917,2]
[358670546,1745357443933,-500.0,0.00021917,2]
[358670547,1745357443943,-500.0,0.00021917,2]
[358670548,1745357443954,-500.0,0.00021917,2]
[358670549,1745357443964,-163.73544545,0.00021917,2]
[358670550,1745357443975,-500.0,0.00021917,2]
[358670551,1745357443986,-500.0,0.00021917,2]
[358670552,1745357443999,-500.0,0.00021917,2]
[358670553,1745357444011,-500.0,0.00021917,2]
[358670554,1745357444022,-500.0,0.00021917,2]
[358670555,1745357444032,-571.24756477,0.00021917,2]
[358670556,1745357444042,-540.01948375,0.00021917,2]
[358670557,1745357444052,-500.0,0.00021917,2]
[358670558,1745357444062,-500.0,0.00021917,2]
[358670559,1745357444073,-500.0,0.00021917,2]
[358670560,1745357444083,-500.0,0.00021917,2]
[358670561,1745357444094,-174.49282231,0.00021917,2]
[358670562,1745357444104,-500.0,0.00021917,2]
[358670563,1745357444114,-500.0,0.00021917,2]
[358670564,1745357444124,-500.0,0.00021917,2]
[358670565,1745357444135,-500.0,0.00021917,2]
[358670566,1745357444146,-500.0,0.00021917,2]
[358670567,1745357444158,-500.0,0.00021917,2]
[358670568,1745357444168,-500.0,0.00021917,2]
[358670569,1745357444179,-500.0,0.00021917,2]
[358670570,1745357444190,-500.0,0.00021917,2]
[358670571,1745357444201,-505.30552431,0.00021917,2]
[358670572,1745357444210,-500.0,0.00021917,2]
[358670573,1745357444221,-500.0,0.00021917,2]
[358670574,1745357444231,-500.0,0.00021917,2]
[358670575,1745357444241,-500.0,0.00021917,2]
[358670576,1745357444253,-500.0,0.00021917,2]
[358670577,1745357444263,-500.0,0.00021917,2]
[358670578,1745357444273,-500.0,0.00021917,2]
[358670579,1745357444283,-500.0,0.00021917,2]
[358670580,1745357444293,-500.0,0.00021917,2]
[358670581,1745357444303,-500.0,0.00021917,2]
[358670582,1745357444313,-501.56761347,0.00021917,2]
[358670583,1745357444323,-500.0,0.00021917,2]
[358670584,1745357444335,-500.0,0.00021917,2]
[358670585,1745357444345,-500.0,0.00021917,2]
[358670586,1745357444355,-500.0,0.00021917,2]
[358670587,1745357444366,-500.0,0.00021917,2]
[358670588,1745357444376,-500.0,0.00021917,2]
[358670589,1745357444386,-500.0,0.00021917,2]
[358670590,1745357444396,-500.0,0.00021917,2]
[358670591,1745357444407,-500.0,0.00021917,2]
[358670592,1745357444417,-285.64776624,0.00021917,2]
[358670593,1745357444427,-500.0,0.00021917,2]
[358670594,1745357444437,-500.0,0.00021917,2]
[358670595,1745357444447,-500.0,0.00021917,2]
[358670596,1745357444458,-500.0,0.00021917,2]
[358670597,1745357444472,-500.0,0.00021917,2]
[358670598,1745357444483,-500.0,0.00021917,2]
[358670599,1745357444493,-500.0,0.00021917,2]
[358670600,1745357444505,-500.0,0.00021917,2]
[358670601,1745357444515,-500.0,0.00021917,2]
[358670602,1745357444526,-248.36969655,0.00021917,2]
[358670603,1745357444537,-500.0,0.00021917,2]
[358670604,1745357444547,-500.0,0.00021917,2]
[358670605,1745357444558,-500.0,0.00021917,2]
[358670606,1745357444568,-500.0,0.00021917,2]
[358670607,1745357444578,-500.0,0.00021917,2]
[358670608,1745357444588,-500.0,0.00021917,2]
[358670609,1745357444598,-500.0,0.00021917,2]
[358670610,1745357444741,-500.0,0.00021917,2]
[358670611,1745357444754,-500.0,0.00021917,2]
[358670612,1745357444764,-500.0,0.00021917,2]
[358670613,1745357444775,-500.0,0.00021917,2]
[358670614,1745357444785,-500.0,0.00021917,2]
[358670616,1745357444795,-500.0,0.00021917,2]
[358670617,1745357444806,-500.0,0.00021917,2]
[358670618,1745357444817,-500.0,0.00021917,2]
[358670619,1745357444828,-500.0,0.00021917,2]
[358670620,1745357444838,-500.0,0.00021917,2]
[358670621,1745357444848,-328.34998022,0.00021917,2]
[358670622,1745357444859,-500.0,0.00021917,2]
[358670623,1745357444870,-500.0,0.00021917,2]
[358670624,1745357444881,-500.0,0.00021917,2]
[358670625,1745357444891,-500.0,0.00021917,2]
[358670626,1745357444902,-500.0,0.00021917,2]
[358670627,1745357444912,-500.0,0.00021917,2]
[358670628,1745357444923,-500.0,0.00021917,2]
[358670629,1745357444933,-501.16050173,0.00021917,2]
[358670630,1745357444944,-500.0,0.00021917,2]
[358670631,1745357444953,-500.0,0.00021917,2]
[358670632,1745357444963,-500.0,0.00021917,2]
[358670633,1745357444974,-500.0,0.00021917,2]
[358670634,1745357444984,-500.0,0.00021917,2]
[358670635,1745357444994,-500.0,0.00021917,2]
[358670636,1745357445006,-509.69664392,0.00021917,2]
[358670637,1745357445016,-500.0,0.00021917,2]
[358670638,1745357445026,-500.0,0.00021917,2]
[358670639,1745357445036,-500.0,0.00021917,2]
[358670640,1745357445048,-500.0,0.00021917,2]
[358670641,1745357445058,-500.0,0.00021917,2]
[358670642,1745357445068,-500.0,0.00021917,2]
[358670643,1745357445078,-500.0,0.00021917,2]
[358670644,1745357445089,-500.0,0.00021917,2]
[358670645,1745357445100,-500.0,0.00021917,2]
[358670646,1745357445111,-500.0,0.00021917,2]
[358670647,1745357445121,-500.0,0.00021917,2]
[358670648,1745357445132,-500.0,0.00021917,2]
[358670649,1745357445143,-500.0,0.00021917,2]
[358670650,1745357445155,-500.0,0.00021917,2]
[358670651,1745357445165,-500.0,0.00021917,2]
[358670652,1745357445181,-500.0,0.00021917,2]
[358670653,1745357445191,-500.0,0.00021917,2]
[358670654,1745357445200,-500.0,0.00021917,2]
[358670655,1745357445210,-500.0,0.00021917,2]
[358670656,1745357445220,-500.0,0.00021917,2]
[358670657,1745357445231,-500.0,0.00021917,2]
[358670658,1745357445240,-500.0,0.00021917,2]
[358670659,1745357445252,-500.0,0.00021917,2]
[358670660,1745357445262,-500.0,0.00021917,2]
[358670661,1745357445272,-500.0,0.00021917,2]
[358670662,1745357445283,-503.75650007,0.00021917,2]
[358670663,1745357445293,-500.0,0.00021917,2]
[358670664,1745357445303,-500.0,0.00021917,2]
[358670665,1745357445312,-500.0,0.00021917,2]
[358670666,1745357445322,-500.0,0.00021917,2]
[358670667,1745357445332,-500.0,0.00021917,2]
[358670668,1745357445342,-507.1184141,0.00021917,2]
[358670669,1745357445353,-500.0,0.00021917,2]
[358670670,1745357445363,-500.0,0.00021917,2]
[358670671,1745357445372,-500.0,0.00021917,2]
[358670672,1745357445381,-500.0,0.00021917,2]
[358670673,1745357445390,-500.0,0.00021917,2]
[358670674,1745357445400,-500.0,0.00021917,2]
[358670675,1745357445410,-500.0,0.00021917,2]
[358670676,1745357445420,-500.0,0.00021917,2]
[358670677,1745357445430,-500.0,0.00021917,2]
[358670678,1745357445439,-500.0,0.00021917,2]
[358670679,1745357445449,-500.0,0.00021917,2]
[358670680,1745357445458,-500.0,0.00021917,2]
[358670681,1745357445468,-500.0,0.00021917,2]
[358670682,1745357445478,-500.0,0.00021917,2]
[358670683,1745357445488,-500.0,0.00021917,2]
[358670684,1745357445497,-500.0,0.00021917,2]
[358670685,1745357445511,-500.0,0.00021917,2]
[358670686,1745357445521,-500.0,0.00021917,2]